bitfinex/quotes_ETHUSD_20240716
["timestamp","ask_amount","ask_price","bid_price","bid_amount"]
[1721142404588,2.91681,3428.4,3427.8,7.3]
[1721142404788,2.91693,3428.3,3427.8,7.73974981]
[1721142405051,2.91693,3428.3,3427.8,7.3]
[1721142405186,0.05117317,3428.2,3427.8,7.3]
[1721142405382,0.05117317,3428.2,3427.8,7.73974981]
[1721142405583,2.9171,3428.1,3427.8,7.3]
[1721142405901,2.9171,3428.1,3427.1,7.3]
[1721142405902,2.91724,3427.9,3427.1,7.3]
[1721142406113,2.91741,3427.7,3427.0,2.91799]
[1721142406417,2.91741,3427.7,3427.0,3.35773981]
[1721142406635,2.91741,3427.7,3427.1,0.43974981]
[1721142406789,2.91741,3427.7,3427.1,1.06732879]
[1721142407116,2.91724,3427.9,3427.2,0.43974981]
[1721142407323,0.05112615,3427.6,3427.2,3.35750981]
[1721142407505,2.91723,3427.9,3427.2,3.34583278]
[1721142407834,0.05112615,3427.5,3427.3,0.42807278]
[1721142408040,2.91722,3428.0,3427.3,0.42807278]
[1721142408346,1.52608915,3428.5,3427.2,0.98913118]
[1721142408565,0.148592,3428.6,3427.1,0.62757898]
[1721142408566,0.05112615,3427.9,3427.4,2.9176]
[1721142408832,2.91676,3428.5,3427.8,2.91725]
[1721142409043,2.91676,3428.5,3427.8,3.34532278]
[1721142409610,2.91676,3428.5,3427.8,6.26257278]
[1721142409845,2.91676,3428.5,3427.8,3.34532278]
[1721142410036,3.7499242,3428.5,3427.8,3.34532278]
[1721142410502,2.91756,3427.6,3427.4,7.3]
[1721142410707,2.91712,3428.1,3426.8,2.91817]
[1721142410708,2.511,3427.9,3426.8,2.91817]
[1721142410910,2.91767,3427.4,3426.9,0.42807278]
[1721142411146,2.91775,3427.3,3426.7,7.3]
[1721142411350,2.91775,3427.3,3426.6,2.91834]
[1721142411503,2.91775,3427.3,3426.6,0.42851359]
[1721142411841,2.91796,3427.1,3426.6,0.42851359]
[1721142412145,2.91814,3426.9,3426.4,3.42851359]
[1721142412314,2.91814,3426.9,3426.5,0.42851359]
[1721142412654,2.91814,3426.9,3426.4,0.42851359]
[1721142413726,2.91796,3427.1,3426.4,0.42851359]
[1721142413932,2.91801,3427.0,3426.4,0.42851359]
[1721142414169,2.91809,3426.9,3426.4,0.42851359]
[1721142414426,2.91809,3426.9,3426.3,7.3]
[1721142414628,0.05071507,3426.8,3426.3,0.42851359]
[1721142414851,3.12878758,3426.8,3425.9,7.3]
[1721142415080,3.12878758,3426.8,3425.5,2.288]
[1721142415081,2.9185,3426.5,3426.0,0.45416612]
[1721142415233,4.49636775,3426.7,3426.0,0.45416612]
[1721142415440,0.05054967,3426.7,3426.1,0.45416612]
[1721142415651,1.52753808,3427.0,3426.1,1.08336373]
[1721142415850,0.05054967,3426.9,3426.2,0.45416612]
[1721142416061,2.91817,3426.8,3426.2,0.45416612]
[1721142416582,2.91853,3426.4,3425.6,2.91917]
[1721142416936,0.05045196,3426.3,3425.7,3.37326612]
[1721142417291,2.91877,3426.1,3425.8,0.45416612]
[1721142417581,0.05045196,3426.3,3425.8,0.45416612]
[1721142417776,0.05039947,3426.0,3425.8,0.45416612]
[1721142417990,2.91855,3426.4,3425.8,0.45416612]
[1721142418187,2.91855,3426.4,3425.5,12.50727]
[1721142418188,0.05036689,3425.9,3425.5,12.50727]
[1721142418481,2.91871,3426.2,3425.6,0.44462709]
[1721142418693,2.91862,3426.3,3425.6,0.44462709]
[1721142419041,2.91862,3426.3,3425.6,3.36381709]
[1721142419450,4.52621657,3427.0,3426.1,2.91877]
[1721142419451,0.05036689,3426.2,3426.1,2.91877]
[1721142419684,0.05036689,3426.2,3426.1,3.36339709]
[1721142419916,2.9182,3426.8,3426.1,5.76419709]
[1721142420196,2.91802,3427.0,3426.2,0.44462709]
[1721142420346,1.83145989,3427.7,3426.2,0.44462709]
[1721142420347,0.05028001,3426.7,3426.5,2.91836]
[1721142420545,2.91767,3427.4,3426.6,0.73646309]
[1721142420745,2.91767,3427.4,3426.7,0.44462709]
[1721142421080,2.3828,3427.6,3426.1,2.91876]
[1721142421081,2.91815,3426.9,3426.1,2.91876]
[1721142421302,4.44220216,3427.5,3425.7,5.4726]
[1721142421303,2.91843,3426.5,3425.8,2.91901]
[1721142421584,2.91843,3426.5,3425.9,0.44462709]
[1721142421769,2.91832,3426.7,3425.9,3.36354709]
[1721142421965,2.91796,3427.1,3426.1,2.91875]
[1721142422177,2.91817,3426.8,3426.1,2.91875]
[1721142423283,2.91783,3427.2,3426.4,2.91845]
[1721142423484,2.91752,3427.6,3426.6,2.91827]
[1721142423695,2.91761,3427.5,3426.7,0.45594757]
[1721142423916,2.91741,3427.7,3426.9,2.91807]
[1721142424060,2.91732,3427.8,3426.9,2.91807]
[1721142424396,2.91728,3427.9,3427.0,3.37386757]
[1721142424593,2.91732,3427.8,3427.1,0.45594757]
[1721142424968,2.91732,3427.8,3426.8,2.91814]
[1721142424969,2.91753,3427.6,3426.8,2.91814]
[1721142425179,2.91753,3427.6,3426.9,2.91807]
[1721142425383,3.73821,3427.8,3427.0,0.45514682]
[1721142425701,2.374,3428.0,3427.0,0.45514682]
[1721142425702,2.91715,3428.0,3427.0,3.37311682]
[1721142425994,3.065242,3428.6,3427.7,2.9174]
[1721142425995,2.91678,3428.5,3427.7,2.9174]
[1721142426236,2.91682,3428.4,3427.8,0.45514682]
[1721142426878,2.91682,3428.4,3427.4,2.91763]
[1721142426879,2.91689,3428.3,3427.4,2.91763]
[1721142427080,0.5982122,3428.3,3427.4,0.45514682]
[1721142427323,0.5982122,3428.3,3427.3,7.3]
[1721142427324,2.91732,3427.8,3427.3,7.3]
[1721142427627,2.91732,3427.8,3427.0,2.91799]
[1721142427628,2.91715,3428.0,3427.4,0.45514682]
[1721142427781,2.91715,3428.0,3427.1,2.91789]
[1721142427782,2.91715,3428.0,3427.2,0.45514682]
[1721142428183,2.91715,3428.0,3427.2,3.37296682]
[1721142428382,2.91715,3428.0,3426.8,9.6464]
[1721142428383,2.91735,3427.8,3427.0,2.91793]
[1721142428583,2.91735,3427.8,3426.8,9.6464]
[1721142428584,2.9175,3427.6,3426.8,10.21816]
[1721142428897,2.9175,3427.6,3426.9,2.91808]
[1721142429397,2.9175,3427.6,3426.9,3.36336657]
[1721142429596,2.9175,3427.6,3426.8,7.3]
[1721142429597,0.05065411,3427.5,3427.0,3.36328657]
[1721142429782,2.91718,3428.0,3427.1,4.42944523]
[1721142430131,2.12177435,3428.3,3427.1,4.42944523]
[1721142430132,0.05054117,3427.4,3427.3,5.83548]
[1721142430419,2.91691,3428.3,3427.6,2.91747]
[1721142430616,0.148592,3428.6,3427.4,2.91765]
[1721142430617,0.148592,3428.6,3427.7,0.44528657]
[1721142430816,0.05050964,3428.2,3427.4,2.91761]
[1721142431017,2.91706,3428.1,3427.2,7.3]
[1721142431218,2.91724,3427.9,3427.3,0.44528657]
[1721142431404,2.96758774,3428.1,3427.3,0.44528657]
[1721142431593,2.91691,3428.3,3427.3,0.44528657]
[1721142431594,2.91691,3428.3,3427.4,2.91763]
[1721142431801,2.91691,3428.3,3427.5,3.36279657]
[1721142431802,0.05052774,3428.0,3427.5,3.36279657]
[1721142431998,2.91682,3428.4,3427.6,3.99079923]
[1721142432195,2.91682,3428.4,3427.7,0.44528657]
[1721142432196,0.05052774,3427.9,3427.7,0.44528657]
[1721142432531,2.91682,3428.4,3427.6,2.91747]
[1721142432726,0.05056391,3427.8,3427.6,2.91747]
[1721142432888,0.05056391,3427.8,3427.6,3.36275657]
[1721142433085,2.91673,3428.5,3427.8,2.91729]
[1721142433289,2.91673,3428.5,3427.9,0.45311574]
[1721142433489,2.91673,3428.5,3427.4,2.91765]
[1721142433490,2.9169,3428.3,3427.4,2.91765]
[1721142434032,2.9169,3428.3,3427.6,2.91748]
[1721142434231,2.9169,3428.3,3427.4,2.91765]
[1721142434414,2.91699,3428.2,3427.4,2.91765]
[1721142434609,2.91699,3428.2,3427.5,3.37061574]
[1721142434803,2.91713,3428.1,3427.5,0.45311574]
[1721142434998,2.91713,3428.1,3427.6,0.45311574]
[1721142435235,2.91715,3428.0,3427.4,2.91766]
[1721142435420,2.91715,3428.0,3427.4,3.37077574]
[1721142435732,2.91691,3428.3,3427.5,0.45311574]
[1721142435936,0.148592,3428.6,3427.5,0.45311574]
[1721142436150,2.91686,3428.4,3427.6,2.91747]
[1721142436348,3.065262,3428.6,3427.7,0.45311574]
[1721142436511,3.065262,3428.6,3427.7,3.37045574]
[1721142436847,3.065262,3428.6,3427.8,3.99921831]
[1721142437047,3.065262,3428.6,3427.9,0.43420673]
[1721142437554,3.065262,3428.6,3428.0,0.43420673]
[1721142437555,2.91672,3428.5,3428.0,0.43420673]
[1721142438162,3.065282,3428.6,3427.9,0.43420673]
[1721142438518,2.91675,3428.5,3427.9,0.43420673]
[1721142438934,0.148592,3428.6,3427.9,3.9783194]
[1721142439276,0.148592,3428.6,3428.0,0.43420673]
[1721142439579,2.91679,3428.5,3427.7,2.91735]
[1721142439722,0.148592,3428.6,3427.9,2.91723]
[1721142439924,3.065242,3428.6,3427.9,2.91723]
[1721142440145,3.065242,3428.6,3427.7,2.91734]
[1721142440146,2.91674,3428.5,3427.7,2.91734]
[1721142440356,2.91674,3428.5,3427.8,0.44787864]
[1721142440547,2.9169,3428.3,3427.8,0.44787864]
[1721142440940,2.9169,3428.3,3427.7,0.44787864]
[1721142441366,5.83353,3428.5,3427.7,4.16414535]
[1721142441565,2.91674,3428.5,3427.7,3.71626671]
[1721142441937,2.91674,3428.5,3427.8,0.44787864]
[1721142442152,2.91674,3428.5,3427.8,3.36515864]
[1721142442333,2.91674,3428.5,3427.9,0.44787864]
[1721142442539,2.91674,3428.5,3427.8,2.91728]
[1721142442738,2.91674,3428.5,3427.8,0.44787864]
[1721142443267,2.9169,3428.3,3427.7,0.44787864]
[1721142443634,2.9169,3428.3,3427.8,0.44787864]
[1721142443838,2.9169,3428.3,3427.5,2.91756]
[1721142444195,2.9169,3428.3,3427.2,9.7015]
[1721142444196,2.9174,3427.7,3427.2,7.3]
[1721142444476,2.9174,3427.7,3426.8,2.417]
[1721142444477,2.91751,3427.6,3426.8,12.63515]
[1721142444688,2.91758,3427.5,3426.9,0.44787864]
[1721142445180,0.04903276,3427.4,3426.8,10.21812]
[1721142445570,0.04903276,3427.4,3426.8,7.3]
[1721142446081,0.04903276,3427.4,3426.8,10.21815]
[1721142446252,0.04903276,3427.4,3426.8,7.3]
[1721142446454,2.91778,3427.3,3426.8,7.3]
[1721142446889,0.04899943,3427.2,3426.8,7.3]
[1721142447241,2.91766,3427.4,3426.8,7.3]
[1721142447442,0.04887065,3427.1,3426.6,2.91833]
[1721142447697,2.91732,3427.8,3427.1,2.91789]
[1721142448155,2.91755,3427.6,3426.7,4.231868]
[1721142448348,2.91742,3427.7,3426.7,4.231868]
[1721142448349,2.9176,3427.5,3426.7,4.231868]
[1721142448770,2.9176,3427.5,3426.8,2.91813]
[1721142449178,2.91771,3427.4,3426.7,4.231918]
[1721142449773,2.91756,3427.6,3426.8,3.6331918]
[1721142449960,2.91756,3427.6,3426.8,4.07430929]
[1721142450161,2.91757,3427.5,3426.8,4.07430929]
[1721142450780,2.91729,3427.9,3426.8,4.07427929]
[1721142451086,2.91737,3427.8,3427.0,2.91792]
[1721142451292,2.9174,3427.7,3427.0,2.91792]
[1721142451795,2.91756,3427.6,3426.9,2.91806]
[1721142452092,2.91766,3427.4,3426.6,2.91828]
[1721142452457,2.91766,3427.4,3426.6,2.91827]
[1721142452701,2.91766,3427.4,3426.7,2.9182]
[1721142452858,2.91755,3427.6,3426.8,2.91815]
[1721142453289,2.91755,3427.6,3426.8,3.37069466]
[1721142453487,2.91759,3427.5,3426.8,3.37069466]
[1721142453668,2.91759,3427.5,3426.8,2.91815]
[1721142454004,2.91767,3427.4,3426.8,2.91815]
[1721142454156,2.91757,3427.6,3426.8,2.91815]
[1721142454360,2.91744,3427.7,3427.0,2.91797]
[1721142454704,2.91744,3427.7,3427.0,5.79421466]
[1721142455068,2.91728,3427.9,3427.1,3.37039466]
[1721142455287,2.91728,3427.9,3427.2,0.45254466]
[1721142456000,2.91697,3428.3,3427.4,2.9176]
[1721142456198,2.91708,3428.1,3427.4,2.9176]
[1721142456564,2.91708,3428.1,3427.5,0.44158594]
[1721142458161,2.91708,3428.1,3427.3,2.91774]
[1721142458368,2.91708,3428.1,3427.4,0.44158594]
[1721142458604,1.01786574,3428.3,3427.1,2.91791]
[1721142458773,2.91742,3427.7,3427.0,2.91798]
[1721142458972,2.91742,3427.7,3427.1,0.44158594]
[1721142459402,0.04854303,3427.6,3427.1,0.44158594]
[1721142460065,0.04854303,3427.6,3426.8,3.6331167]
[1721142460501,0.04854303,3427.6,3426.8,4.05849716]
[1721142460870,2.96604303,3427.6,3426.9,0.42538046]
[1721142461067,2.91782,3427.3,3426.2,2.4421]
[1721142461300,2.91782,3427.3,3426.3,2.91855]
[1721142461301,2.91792,3427.1,3426.3,2.91855]
[1721142461505,2.91792,3427.1,3426.4,3.454515]
[1721142461664,0.04853576,3427.0,3426.4,3.454515]
[1721142462069,0.04853576,3427.0,3426.2,2.4175]
[1721142462070,2.91818,3426.8,3426.2,2.4175]
[1721142462298,0.04853576,3427.0,3426.3,2.91859]
[1721142462299,2.96656576,3427.0,3426.3,2.91859]
[1721142462464,0.04853576,3427.0,3426.2,2.4175]
[1721142462672,0.04853576,3427.0,3426.4,2.91843]
[1721142462900,2.9178,3427.3,3426.6,2.91833]
[1721142463100,0.04850243,3426.9,3426.6,2.91833]
[1721142463405,0.04850243,3426.8,3426.6,3.502006]
[1721142463587,2.9178,3427.3,3426.6,3.92738646]
[1721142463795,0.04850243,3426.7,3426.6,3.92738646]
[1721142463998,2.91758,3427.5,3426.9,2.91807]
[1721142464197,2.91741,3427.7,3427.0,2.91799]
[1721142464712,2.91741,3427.7,3427.0,3.501611]
[1721142464917,2.91727,3427.9,3427.0,3.92695146]
[1721142465086,2.91738,3427.8,3427.0,3.92693146]
[1721142465411,2.91738,3427.8,3427.1,2.91791]
[1721142465631,1.83288024,3428.4,3427.6,2.91746]
[1721142465773,2.91679,3428.5,3427.7,2.91735]
[1721142466800,2.91682,3428.4,3427.5,2.91756]
[1721142467125,2.91682,3428.4,3427.6,2.91745]
[1721142467613,2.91698,3428.2,3427.3,2.91767]
[1721142467831,2.91698,3428.2,3427.4,2.91765]
[1721142468121,2.91726,3427.9,3427.2,7.3]
[1721142470028,2.91726,3427.9,3427.2,10.21783]
[1721142470401,4.75205724,3428.1,3427.2,10.21783]
[1721142470715,2.91713,3428.1,3427.2,10.21783]
[1721142470911,2.91713,3428.1,3427.2,10.65673578]
[1721142471082,2.91716,3428.0,3427.2,10.65673578]
[1721142471286,1.83492724,3428.2,3427.2,8.65747358]
[1721142471479,3.0,3428.4,3427.7,2.91736]
[1721142471703,4.83492724,3428.4,3427.7,2.91736]
[1721142471900,4.23971177,3428.4,3427.7,2.91736]
[1721142472101,1.83492724,3428.5,3427.7,2.91736]
[1721142472288,1.83492724,3428.5,3427.4,2.4892]
[1721142472487,0.148592,3428.6,3427.4,2.92810578]
[1721142472787,0.148592,3428.6,3427.9,5.83435]
[1721142473133,0.148592,3428.6,3428.0,2.91712]
[1721142474802,0.04864502,3428.5,3428.0,2.91712]
[1721142475202,2.91681,3428.4,3427.6,2.91742]
[1721142475405,2.91681,3428.4,3427.4,2.4892]
[1721142475406,0.04864502,3428.5,3427.9,2.91723]
[1721142475615,0.04866134,3428.3,3427.9,2.91723]
[1721142475796,0.148592,3428.6,3427.9,2.91723]
[1721142476000,0.04866134,3428.2,3427.9,2.91723]
[1721142476221,0.148592,3428.6,3427.9,2.91723]
[1721142476424,0.04866134,3428.1,3427.9,2.91723]
[1721142476729,0.148592,3428.6,3428.1,2.91703]
[1721142477443,0.148592,3428.6,3428.0,0.583463]
[1721142477741,0.148592,3428.6,3428.1,5.3173]
[1721142477919,0.148592,3428.6,3428.2,2.91698]
[1721142478110,0.148592,3428.6,3428.1,5.3173]
[1721142478111,0.148592,3428.6,3428.3,3.34419557]
[1721142478294,0.148592,3428.6,3428.4,0.42731557]
[1721142479140,0.148592,3428.6,3428.5,2.91672]
[1721142479294,0.148592,3428.6,3428.5,6.416795]
[1721142479499,0.148592,3428.6,3428.5,6.84411057]
[1721142480891,0.148592,3428.6,3428.5,6.416795]
[1721142481530,0.148592,3428.6,3428.5,6.84411057]
[1721142482037,0.148592,3428.6,3428.5,12.28731057]
[1721142482333,0.148592,3428.6,3428.5,14.776715]
[1721142482544,0.148592,3428.6,3428.5,15.20429868]
[1721142484441,8.12887448,3430.9,3428.5,15.20429868]
[1721142484442,1.83009812,3431.0,3430.9,2.91468]
[1721142484739,1.83009812,3431.0,3430.0,5.3205]
[1721142484740,0.3987935,3431.0,3430.3,2.91511]
[1721142484910,0.3987935,3431.0,3430.0,2.4051]
[1721142484911,2.91426,3431.4,3430.5,2.91495]
[1721142485110,2.91418,3431.5,3430.6,2.91487]
[1721142485439,5.34606,3431.9,3430.7,2.91485]
[1721142485605,0.153592,3432.0,3431.0,5.8292]
[1721142486042,0.153592,3432.0,3430.9,2.91467]
[1721142486043,2.91385,3431.9,3430.9,2.91467]
[1721142486341,2.91385,3431.9,3431.0,2.9146]
[1721142486502,2.91393,3431.8,3430.8,2.91475]
[1721142486703,2.91393,3431.8,3430.8,0.4308033]
[1721142486931,3.067422,3432.0,3430.7,2.91479]
[1721142486932,2.91402,3431.7,3430.7,2.91479]
[1721142487132,2.91411,3431.6,3430.7,2.91479]
[1721142487640,2.91424,3431.5,3430.5,2.91499]
[1721142487838,2.91424,3431.5,3430.5,0.4308033]
[1721142488345,2.91428,3431.4,3430.5,0.4308033]
[1721142488650,2.91424,3431.5,3430.3,2.91519]
[1721142488651,2.91436,3431.3,3430.3,2.91518]
[1721142488885,8.17146,3431.8,3430.6,2.91485]
[1721142488886,2.914,3431.7,3430.6,2.91485]
[1721142489035,2.914,3431.7,3430.4,0.48910308]
[1721142489036,0.153592,3432.0,3431.0,2.9146]
[1721142489237,0.153592,3432.0,3431.0,5.8292]
[1721142490139,0.153592,3432.0,3431.0,11.1759]
[1721142490333,0.153592,3432.0,3431.0,14.1759]
[1721142490642,0.153592,3432.0,3431.0,15.90139]
[1721142491269,0.153592,3432.0,3431.0,18.98039]
[1721142491455,0.153592,3432.0,3431.0,19.42832742]
[1721142491765,0.153592,3432.0,3431.0,16.34932742]
[1721142492266,0.153592,3432.0,3431.0,12.98679]
[1721142492672,0.12631443,3432.0,3431.3,2.91428]
[1721142492839,0.12631443,3432.0,3431.4,2.91425]
[1721142493039,0.12631443,3432.0,3431.5,2.91416]
[1721142493333,0.12631443,3432.0,3431.8,2.91384]
[1721142494266,0.12631443,3432.0,3431.9,2.91383]
[1721142494595,0.13131443,3432.0,3431.9,2.91383]
[1721142494752,0.13131443,3432.0,3431.8,2.9139]
[1721142495272,0.13131443,3432.0,3431.5,3.497014]
[1721142495563,0.13131443,3432.0,3431.3,2.91432]
[1721142495773,0.13131443,3432.0,3431.4,0.42733273]
[1721142496275,2.9139,3431.9,3431.0,1.72549]
[1721142496471,3.04513443,3432.0,3431.0,1.72549]
[1721142496472,2.91393,3431.8,3431.0,1.72549]
[1721142496770,0.13131443,3432.0,3431.1,4.108517]
[1721142497075,0.13131443,3432.0,3431.3,2.91426]
[1721142497276,0.13131443,3432.0,3431.6,2.91409]
[1721142498356,0.13131443,3432.0,3431.7,2.91399]
[1721142498961,0.13131443,3432.0,3431.5,2.91411]
[1721142499162,0.13131443,3432.0,3431.6,2.91401]
[1721142499856,0.13131443,3432.0,3431.8,2.91392]
[1721142501456,0.13131443,3432.0,3431.9,11.34002919]
[1721142501657,0.13131443,3432.0,3431.9,11.34002253]
[1721142501983,0.011,3432.6,3431.9,11.34002253]
[1721142501984,0.011,3432.6,3432.4,2.91335]
[1721142502289,0.011,3432.6,3432.5,2.91332]
[1721142502872,0.011,3432.6,3432.4,0.582679]
[1721142503244,0.03970626,3432.5,3431.8,7.3]
[1721142503456,0.03970626,3432.5,3432.0,0.30577305]
[1721142503659,0.011,3432.6,3432.0,0.30577305]
[1721142503660,0.00070626,3432.6,3432.0,0.30577305]
[1721142503902,0.00070626,3432.6,3432.0,3.21951305]
[1721142504664,0.00070626,3432.6,3432.2,2.91357]
[1721142504900,0.00070626,3432.6,3432.3,0.3219343]
[1721142505209,2.91394626,3432.6,3432.5,0.30577305]
[1721142505569,0.00070626,3432.6,3432.5,0.30577305]
[1721142506398,0.00070626,3432.6,3432.2,2.91358]
[1721142506965,0.00070626,3432.6,3432.2,2.97184241]
[1721142507171,0.00070626,3432.6,3432.2,2.91358]
[1721142507366,0.00070626,3432.6,3432.2,3.496311]
[1721142507617,0.00070626,3432.6,3432.3,2.91349]
[1721142507797,0.00070626,3432.6,3432.2,3.496291]
[1721142507999,0.00070626,3432.6,3432.2,0.582731]
[1721142508413,0.00070626,3432.6,3432.2,0.43712136]
[1721142508622,2.91338,3432.5,3431.8,7.3]
[1721142509069,2.91338,3432.5,3431.9,0.43712136]
[1721142509513,2.91383,3431.9,3431.8,7.3]
[1721142509681,2.91395,3431.8,3431.2,7.3]
[1721142509880,2.91395,3431.8,3431.3,0.43330478]
[1721142509881,2.91411,3431.6,3431.3,0.43330478]
[1721142510401,2.91419,3431.5,3431.2,7.3]
[1721142510732,2.3313,3432.1,3431.2,7.3]
[1721142510733,0.03849721,3431.4,3431.2,7.3]
[1721142511216,2.3313,3432.1,3431.3,0.43330478]
[1721142511217,2.91369,3432.1,3431.3,0.43330478]
[1721142511517,2.91359,3432.2,3431.4,5.34185]
[1721142511670,2.91335,3432.5,3431.4,5.34185]
[1721142511671,2.91347,3432.4,3431.5,4.94641226]
[1721142511872,2.91347,3432.4,3431.6,0.43330478]
[1721142512376,2.91400626,3432.6,3431.6,3.34733478]
[1721142512617,2.91400626,3432.6,3431.7,3.34723478]
[1721142512800,2.91400626,3432.6,3431.8,0.42917671]
[1721142513016,2.91400626,3432.6,3431.9,0.62571367]
[1721142513180,0.00070626,3432.6,3431.9,3.96870038]
[1721142513521,0.00070626,3432.6,3431.9,3.34298671]
[1721142513699,0.00070626,3432.6,3432.0,0.42917671]
[1721142513943,0.00070626,3432.6,3432.1,0.42917671]
[1721142514711,0.00070626,3432.6,3431.8,3.079]
[1721142514941,0.00070626,3432.6,3432.3,2.91341]
[1721142515757,0.00070626,3432.6,3431.9,4.1169]
[1721142515913,0.00070626,3432.6,3432.5,5.82664]
[1721142516272,0.00070626,3432.6,3432.0,2.78257671]
[1721142516273,0.00070626,3432.6,3432.1,3.079]
[1721142516547,0.00070626,3432.6,3432.3,2.91348]
[1721142516762,0.00070626,3432.6,3432.4,0.582706]
[1721142517048,0.03859168,3432.5,3432.0,2.3534]
[1721142517256,0.00070626,3432.6,3432.1,2.91365]
[1721142517406,0.03859168,3432.5,3432.0,5.26714]
[1721142517611,0.03859168,3432.5,3432.0,2.3534]
[1721142518064,0.03859168,3432.5,3431.9,1.0379]
[1721142518213,0.03859168,3432.5,3431.5,3.95235748]
[1721142518214,2.91348,3432.4,3431.5,3.95235748]
[1721142518414,2.91339,3432.5,3431.5,1.59895748]
[1721142518669,2.91355,3432.3,3431.5,1.59895748]
[1721142518980,2.91358,3432.2,3431.5,1.59895748]
[1721142519281,2.95223708,3432.2,3431.5,4.51309748]
[1721142519485,2.91399626,3432.6,3431.8,1.18130975]
[1721142519694,0.03870613,3432.5,3431.8,4.09516975]
[1721142519977,0.03870613,3432.5,3432.0,2.91372]
[1721142520176,0.03870613,3432.5,3431.8,4.09518975]
[1721142520374,0.03870613,3432.5,3432.1,2.91366]
[1721142520564,0.03870613,3432.5,3432.2,0.291366]
[1721142521082,0.00070626,3432.6,3432.2,0.291366]
[1721142521289,0.00070626,3432.6,3432.0,2.91374]
[1721142521290,0.03864255,3432.5,3432.0,2.91374]
[1721142521954,0.03864255,3432.5,3431.9,2.2638]
[1721142522152,0.03864255,3432.5,3432.0,2.91368]
[1721142522683,0.03864255,3432.5,3432.1,2.91365]
[1721142522839,0.00070626,3432.6,3432.1,2.91365]
[1721142523042,0.00070626,3432.6,3432.2,0.809121]
[1721142523393,0.03866435,3432.5,3432.2,0.809121]
[1721142524304,0.03866435,3432.5,3431.8,1.18130975]
[1721142524588,0.03866435,3432.5,3432.0,2.91373]
[1721142528095,0.03866435,3432.5,3432.1,0.44664486]
[1721142529266,0.03866435,3432.5,3431.8,1.18130975]
[1721142529569,0.03866435,3432.5,3431.9,0.45580658]
[1721142529773,0.03866435,3432.5,3431.9,2.24020821]
[1721142529978,0.03866435,3432.5,3432.0,0.45580658]
[1721142530278,2.95202435,3432.5,3432.0,0.45580658]
[1721142531589,0.03866435,3432.5,3432.0,0.45580658]
[1721142531888,2.91397626,3432.6,3432.0,0.45580658]
[1721142532057,0.03857043,3432.4,3432.0,1.21983764]
[1721142532258,2.91338,3432.5,3432.0,1.21983764]
[1721142532466,0.03855772,3432.4,3432.0,1.21983764]
[1721142532919,0.03855772,3432.4,3432.0,0.44425698]
[1721142532920,2.91366,3432.1,3432.0,0.44425698]
[1721142533071,0.03855772,3432.4,3432.0,0.44425698]
[1721142533424,0.00070626,3432.6,3432.0,0.44425698]
[1721142533618,0.00070626,3432.6,3431.5,3.0]
[1721142533619,0.0385341,3432.3,3432.1,0.44425698]
[1721142533824,2.91335,3432.5,3432.2,0.44425698]
[1721142534028,2.91335,3432.5,3431.6,5.82802]
[1721142534175,0.03853228,3432.4,3431.7,1.57669898]
[1721142534370,0.03853228,3432.4,3431.8,0.44425698]
[1721142534807,0.03853228,3432.4,3432.2,2.91357]
[1721142535110,0.00070626,3432.6,3431.7,1.132442]
[1721142535111,0.00070626,3432.6,3432.5,2.91332]
[1721142535609,0.00070626,3432.6,3432.5,0.73049964]
[1721142535771,0.00070626,3432.6,3432.5,1.0948986]
[1721142535973,0.00070626,3432.6,3432.5,4.0082186]
[1721142536174,0.00070626,3432.6,3432.5,1.0948986]
[1721142536606,0.00070626,3432.6,3432.5,4.0082186]
[1721142536821,0.00070626,3432.6,3432.5,6.91657904]
[1721142537113,0.00070626,3432.6,3432.5,3.58357904]
[1721142537315,0.00070626,3432.6,3432.5,4.0082186]
[1721142537737,0.00070626,3432.6,3432.5,6.9215386]
[1721142538209,0.00070626,3432.6,3432.5,4.0082186]
[1721142538775,0.00070626,3432.6,3432.5,1.0948986]
[1721142539014,0.00070626,3432.6,3432.5,4.0082186]
[1721142539208,0.00070626,3432.6,3432.5,6.9215386]
[1721142539452,0.00070626,3432.6,3432.5,12.9058586]
[1721142539627,0.00070626,3432.6,3432.5,19.2388586]
[1721142540411,0.00070626,3432.6,3432.5,22.1260586]
[1721142540845,0.00070626,3432.6,3432.5,22.48852064]
[1721142541055,0.00070626,3432.6,3432.5,22.1260586]
[1721142542151,0.0519761,3432.8,3432.7,11.81045]
[1721142542352,0.0519761,3432.8,3432.7,18.29164418]
[1721142543016,0.0519761,3432.8,3432.7,21.20479418]
[1721142543219,1.83016946,3435.3,3434.4,2.91163]
[1721142543419,2.91061,3435.8,3434.7,2.9114]
[1721142543420,0.03518277,3435.2,3434.7,2.9114]
[1721142544053,0.03518277,3435.1,3434.8,2.91135]
[1721142544352,2.2779,3435.9,3435.1,2.91105]
[1721142544651,2.91063,3435.7,3434.9,2.91129]
[1721142544850,2.91063,3435.7,3434.6,2.91147]
[1721142544851,2.91071,3435.6,3434.6,2.91147]
[1721142545060,2.2779,3435.9,3435.0,2.91116]
[1721142545263,0.09043329,3436.3,3435.2,2.91101]
[1721142545264,3.00053329,3436.3,3435.2,2.91101]
[1721142545555,2.9103,3436.1,3435.3,0.45256875]
[1721142545724,2.91046,3435.9,3435.3,0.75842883]
[1721142546260,2.91046,3435.9,3435.3,0.30586008]
[1721142546420,2.91053,3435.8,3435.3,0.30586008]
[1721142546620,0.09043329,3436.3,3435.3,0.30586008]
[1721142546839,2.9107,3435.6,3434.6,2.9115]
[1721142547038,2.91059,3435.8,3434.7,3.35167372]
[1721142547262,2.91046,3435.9,3435.0,2.91118]
[1721142547420,2.91046,3435.9,3435.1,0.44028372]
[1721142547762,2.91046,3435.9,3435.0,2.91118]
[1721142547763,2.91051,3435.9,3435.0,2.91118]
[1721142547964,2.91051,3435.9,3435.0,3.35146372]
[1721142548175,2.91051,3435.9,3435.1,0.44028372]
[1721142548380,2.9102,3436.2,3435.1,1.11820869]
[1721142548523,2.9102,3436.2,3435.2,0.44028372]
[1721142548875,2.9102,3436.2,3435.3,2.91095]